bitfinex-derivatives/quotes_SOLF0:USTF0_20250903
["timestamp","ask_amount","ask_price","bid_price","bid_amount"]
[1756886987349,5.34138897,210.27,210.17,7.89]
[1756886987949,5.34138897,210.26,210.17,7.89]
[1756886988250,12.54138897,210.27,210.17,7.89]
[1756886988549,5.34138897,210.26,210.17,7.89]
[1756886991251,12.54138897,210.27,210.17,7.89]
[1756886993550,12.54138897,210.25,210.17,7.89]
[1756886994146,58.90138897,210.25,210.17,7.89]
[1756886995056,80.30138897,210.25,210.17,7.89]
[1756886995458,74.96,210.25,210.17,7.89]
[1756886997153,74.96,210.25,210.07,390.22928671]
[1756886997154,80.30138897,210.25,210.11,2.7164136]
[1756886997360,7.2,210.22,210.12,7.89]
[1756886999665,82.58,210.23,210.12,7.89]
[1756886999857,82.58,210.23,210.14,7.89]
[1756887000466,7.2,210.22,210.14,7.89]
[1756887000663,9.9164136,210.22,210.14,7.89]
[1756887000963,15.25780257,210.22,210.14,7.89]
[1756887001164,101.58,210.21,210.14,7.89]
[1756887001463,7.2,210.2,210.14,7.89]
[1756887002362,7.2,210.2,210.09,7.89]
[1756887003357,2.7164136,210.19,210.09,7.89]
[1756887003567,7.2,210.18,210.09,7.89]
[1756887003866,7.2,210.15,209.98,7.89]
[1756887004060,7.2,210.15,210.04,7.89]
[1756887005462,7.2,210.09,209.98,2.7164136]
[1756887005661,7.2,210.09,209.99,7.89]
[1756887008362,2.7164136,210.07,209.99,7.89]
[1756887008665,7.2,210.06,209.99,7.89]
[1756887013971,22.76,210.06,209.99,7.89]
[1756887016669,7.67,210.05,209.99,7.89]
[1756887021775,7.67,210.05,209.93,2.7164136]
[1756887022072,7.67,210.05,209.94,7.47]
[1756887023071,7.67,210.03,209.94,7.47]
[1756887026076,7.67,210.0,209.9,7.47]
[1756887026771,7.67,210.0,209.91,2.7164136]
[1756887027076,11.94,210.05,209.95,7.47]
[1756887028276,7.67,210.06,209.95,7.47]
[1756887028478,7.67,210.06,209.98,7.47]
[1756887030075,7.67,210.12,209.98,7.47]
[1756887030382,7.67,210.12,210.04,7.47]
[1756887030774,293.32,210.13,209.99,4.2856]
[1756887030775,293.32,210.13,210.06,2.7164136]
[1756887030977,293.32,210.13,209.99,4.2856]
[1756887030978,293.32,210.13,210.07,7.47]
[1756887034388,7.67,210.12,210.01,2.7164136]
[1756887034583,7.67,210.12,210.02,7.47]
[1756887034987,293.32,210.13,210.02,7.47]
[1756887034988,7.67,210.1,210.02,7.47]
[1756887035582,7.67,210.07,210.0,1.74198733]
[1756887035790,118.52198733,210.06,209.98,1.74198733]
[1756887036281,118.52198733,210.06,210.0,1.74198733]
[1756887037691,118.52198733,210.06,209.98,1.74198733]
[1756887037888,1.74198733,210.04,209.97,7.47]
[1756887038787,1.74198733,210.02,209.97,7.47]
[1756887038989,1.74198733,210.0,209.93,7.47]
[1756887039292,118.48198733,210.0,209.93,7.47]
[1756887040596,7.67,210.01,209.93,9.21198733]
[1756887040789,7.67,210.01,209.99,1.74198733]
[1756887040985,20.24,210.05,209.99,1.74198733]
[1756887043196,21.98198733,210.05,209.99,1.74198733]
[1756887043492,43.74198733,210.07,210.0,7.62]
[1756887043797,43.74198733,210.07,210.01,1.74198733]
[1756887044897,43.74198733,210.07,210.0,7.62]
[1756887045498,51.41198733,210.07,210.0,7.62]
[1756887045795,7.67,210.07,210.01,1.74198733]
[1756887047598,7.67,210.11,210.05,1.74198733]
[1756887053501,124.49,210.11,210.05,1.74198733]
[1756887055007,7.67,210.11,210.05,1.74198733]
[1756887055304,38.67,210.13,210.09,9.36198733]
[1756887055501,7.67,210.13,210.09,9.36198733]
[1756887058206,7.67,210.14,210.1,7.62]
[1756887058804,7.67,210.14,210.02,4.285]
[1756887059004,7.67,210.14,210.09,1.74198733]
[1756887059205,7.67,210.14,210.1,7.62]
[1756887059708,7.67,210.14,210.1,9.36198733]
[1756887060114,116.74,210.16,210.1,9.36198733]
[1756887060409,7.67,210.15,210.1,9.36198733]
[1756887060610,124.41,210.16,210.1,9.36198733]
[1756887061709,124.41,210.16,210.1,1.74198733]
[1756887062313,124.41,210.16,210.09,1.74198733]
[1756887064611,124.41,210.16,210.07,7.62]
[1756887064812,7.67,210.14,210.08,1.74198733]
[1756887066112,7.67,210.14,209.99,4.2855]
[1756887066113,7.67,210.14,210.0,7.62]
[1756887066314,7.67,210.14,210.07,1.74198733]
[1756887067514,7.67,210.14,210.04,7.62]
[1756887067714,7.67,210.14,210.08,1.74198733]
[1756887070313,7.67,210.14,210.06,7.62]
[1756887070514,7.67,210.14,210.08,1.74198733]
[1756887070913,301.4617,210.21,210.13,1.74198733]
[1756887070914,13.01138897,210.21,210.13,1.74198733]
[1756887071111,7.67,210.21,210.18,1.74198733]
[1756887071310,7.67,210.25,210.18,9.36198733]
[1756887072415,1.74198733,210.24,210.18,1.74198733]
[1756887072606,7.69,210.23,210.18,1.74198733]
[1756887072922,1.74198733,210.24,210.18,1.74198733]
[1756887073117,7.69,210.23,210.18,1.74198733]
[1756887073516,1.74198733,210.24,210.18,1.74198733]
[1756887073913,7.69,210.23,210.14,7.2]
[1756887074114,7.69,210.23,210.16,1.74198733]
[1756887076520,7.69,210.23,210.18,1.74198733]
[1756887076815,9.43198733,210.24,210.18,8.94198733]
[1756887078921,9.43198733,210.24,210.16,1.74198733]
[1756887079418,9.43198733,210.24,210.17,7.2]
[1756887079616,125.05,210.23,210.18,8.94198733]
[1756887079819,117.36,210.23,210.18,8.94198733]
[1756887080023,125.05,210.23,210.18,8.94198733]
[1756887080223,7.69,210.22,210.18,8.94198733]
[1756887081026,117.36,210.23,210.18,8.94198733]
[1756887081526,7.69,210.22,210.18,8.94198733]
[1756887082020,7.69,210.22,210.18,1.74198733]
[1756887082227,117.36,210.23,210.18,1.74198733]
[1756887082628,7.69,210.22,210.16,1.74198733]
[1756887084322,1.74198733,210.2,210.14,8.94198733]
[1756887084827,1.74198733,210.18,210.11,1.74198733]
[1756887085727,7.69,210.19,210.15,8.94198733]
[1756887086125,7.69,210.19,210.15,1.74198733]
[1756887086526,7.69,210.19,210.15,8.94198733]
[1756887086723,7.69,210.19,210.15,1.74198733]
[1756887086920,7.69,210.19,210.15,8.94198733]
[1756887087528,7.69,210.19,210.16,7.2]
[1756887091432,9.43198733,210.2,210.13,8.94198733]
[1756887094635,9.43198733,210.2,210.13,7.2]
[1756887094834,7.69,210.17,210.1,8.94198733]
[1756887095426,7.69,210.17,210.1,7.2]
[1756887097334,117.14,210.21,210.11,7.2]
[1756887097533,124.83,210.21,210.11,7.2]
[1756887097734,7.69,210.21,210.13,2.71919596]
[1756887097950,7.69,210.21,210.14,7.2]
[1756887108349,51.24,210.24,210.14,7.2]
[1756887108550,59.13,210.24,210.14,7.2]
[1756887109756,124.85,210.24,210.14,7.2]
[1756887114358,130.19138897,210.24,210.14,7.2]
[1756887116860,13.23138897,210.24,210.14,7.2]
[1756887117063,116.8,210.23,210.14,7.2]
[1756887117360,7.89,210.22,210.14,7.2]
[1756887119159,7.89,210.22,210.16,2.71919596]
[1756887119660,7.89,210.22,210.16,10.24919596]
[1756887123666,33.62,210.24,210.17,7.53]
[1756887126466,7.89,210.23,210.17,7.53]
[1756887128164,7.89,210.23,210.13,2.71919596]
[1756887128466,7.89,210.23,210.14,7.53]
[1756887131263,13.23138897,210.22,210.1,7.53]
[1756887131466,7.66,210.19,210.1,7.53]
[1756887134072,13.00138897,210.23,210.16,7.47]
[1756887134274,7.66,210.23,210.16,7.47]
[1756887135172,5.34138897,210.25,210.18,2.71919596]
[1756887135471,5.34138897,210.26,210.19,7.47]
[1756887136570,7.66,210.27,210.19,7.47]
[1756887137070,7.66,210.27,210.21,2.71919596]
[1756887137374,129.76138897,210.31,210.22,7.47]
[1756887139374,124.42,210.31,210.22,7.47]
[1756887142682,7.66,210.31,210.22,7.47]
[1756887142970,7.66,210.31,210.24,7.47]
[1756887146081,116.68,210.33,210.24,7.47]
[1756887146276,9.92777897,210.35,210.26,2.71919596]
[1756887146475,124.34,210.34,210.27,7.47]
[1756887150380,124.34,210.34,210.26,2.71919596]
[1756887150777,124.34,210.34,210.23,10.18919596]
[1756887151076,7.66,210.33,210.23,10.18919596]
[1756887151775,7.66,210.33,210.23,7.47]
[1756887152481,7.66,210.33,210.25,2.71919596]
[1756887152779,124.32,210.33,210.26,7.47]
[1756887157681,7.66,210.32,210.28,1.73749535]
[1756887158084,116.66,210.33,210.28,1.73749535]
[1756887158685,7.66,210.32,210.28,1.73749535]
[1756887159387,116.66,210.33,210.28,1.73749535]
[1756887159587,7.66,210.32,210.28,1.73749535]
[1756887159789,116.66,210.33,210.28,1.73749535]
[1756887160187,7.66,210.32,210.28,1.73749535]
[1756887161187,116.66,210.33,210.28,1.73749535]
[1756887161490,116.66,210.33,210.28,9.20749535]
[1756887161688,7.32,210.32,210.28,9.20749535]
[1756887161887,116.66,210.33,210.28,9.20749535]
[1756887162083,116.66,210.33,210.28,1.73749535]
[1756887162789,7.32,210.32,210.28,1.73749535]
[1756887162994,116.66,210.33,210.28,1.73749535]
[1756887163490,7.32,210.32,210.28,1.73749535]
[1756887164191,116.66,210.33,210.28,1.73749535]
[1756887164989,7.32,210.32,210.28,1.73749535]
[1756887165293,116.66,210.33,210.28,1.73749535]
[1756887165886,7.32,210.32,210.25,7.67]
[1756887166088,7.32,210.32,210.29,1.73749535]
[1756887166287,116.66,210.33,210.29,1.73749535]
[1756887166693,7.32,210.32,210.29,1.73749535]
[1756887166893,116.66,210.33,210.29,1.73749535]
[1756887167795,7.32,210.32,210.29,1.73749535]
[1756887167987,116.64,210.33,210.29,1.73749535]
[1756887168393,7.32,210.32,210.31,1.73749535]
[1756887169092,7.32,210.34,210.31,1.73749535]
[1756887169288,121.22639,210.35,210.31,1.73749535]
[1756887169484,7.32,210.34,210.31,1.73749535]
[1756887169689,121.22639,210.35,210.31,1.73749535]
[1756887169994,7.32,210.34,210.31,1.73749535]
[1756887170291,121.22639,210.35,210.31,1.73749535]
[1756887170494,7.32,210.34,210.31,1.73749535]
[1756887170686,121.22639,210.35,210.31,1.73749535]
[1756887171991,7.32,210.34,210.31,1.73749535]
[1756887172294,121.22639,210.35,210.31,1.73749535]
[1756887172689,7.32,210.34,210.31,1.73749535]
[1756887172887,121.20639,210.35,210.31,1.73749535]
[1756887173193,7.32,210.34,210.31,1.73749535]
[1756887173994,121.20639,210.35,210.31,1.73749535]
[1756887174196,7.32,210.34,210.31,1.73749535]
[1756887174894,121.20639,210.35,210.31,1.73749535]
[1756887176093,121.20639,210.35,210.29,9.40749535]
[1756887176599,7.32,210.34,210.29,9.40749535]
[1756887176894,121.20639,210.35,210.29,9.40749535]
[1756887177194,11.90639,210.35,210.33,1.73749535]
[1756887177399,7.32,210.34,210.33,1.73749535]
[1756887178892,4.58639,210.35,210.31,9.40749535]
[1756887179195,4.58639,210.35,210.32,7.67]
[1756887179400,4.58639,210.35,210.34,7.67]
[1756887179600,4.58639,210.35,210.33,1.73749535]
[1756887179799,4.58639,210.35,210.33,9.40749535]
[1756887181498,4.58639,210.35,210.33,1.73749535]
[1756887181696,4.58639,210.35,210.34,7.67]
[1756887183097,4.58639,210.35,210.34,9.40749535]
[1756887188205,116.58,210.41,210.34,9.40749535]
[1756887188405,7.32,210.4,210.37,1.73749535]
[1756887189301,7.32,210.4,210.39,1.73749535]
[1756887191604,7.32,210.4,210.34,7.67]
[1756887191800,7.32,210.4,210.35,1.73749535]
[1756887193201,7.48,210.4,210.35,1.73749535]
[1756887193405,116.58,210.41,210.35,1.73749535]
[1756887194103,7.48,210.4,210.35,1.73749535]
[1756887195005,116.58,210.41,210.35,1.73749535]
[1756887195303,7.48,210.4,210.35,1.73749535]
[1756887196906,9.21749535,210.4,210.33,1.73749535]
[1756887197206,7.48,210.4,210.34,7.63]
[1756887197406,7.48,210.4,210.39,1.73749535]
[1756887199307,7.48,210.4,210.37,1.73749535]
[1756887199511,5.0,210.42,210.37,1.73749535]
[1756887199906,7.48,210.41,210.37,1.73749535]
[1756887200106,5.0,210.42,210.37,1.73749535]
[1756887200307,7.48,210.41,210.37,1.73749535]
[1756887200605,5.0,210.42,210.37,1.73749535]
[1756887201009,7.48,210.41,210.37,1.73749535]
[1756887201306,124.04,210.41,210.37,7.63]
[1756887201506,124.04,210.41,210.39,1.73749535]
[1756887201705,7.48,210.4,210.39,1.73749535]
[1756887203705,7.48,210.4,210.36,7.63]
[1756887204007,116.56,210.41,210.37,1.73749535]
[1756887204510,7.48,210.4,210.37,1.73749535]
[1756887204706,116.56,210.41,210.37,1.73749535]
[1756887205113,116.56,210.41,210.32,7.63]
[1756887205114,116.56,210.41,210.36,1.73749535]
[1756887205409,7.48,210.4,210.36,1.73749535]
[1756887205615,116.56,210.41,210.36,1.73749535]
[1756887205915,7.48,210.4,210.36,1.73749535]
[1756887206106,116.56,210.41,210.36,1.73749535]
[1756887206310,7.48,210.4,210.36,1.73749535]
[1756887206613,116.56,210.41,210.36,1.73749535]
[1756887206913,7.48,210.4,210.36,1.73749535]
[1756887207218,7.48,210.4,210.26,14.82]
[1756887207219,7.48,210.4,210.38,1.73749535]
[1756887207414,116.54,210.4,210.38,9.36749535]
[1756887207613,129.02,210.42,210.38,9.36749535]
[1756887207812,7.48,210.41,210.38,9.36749535]
[1756887208315,129.02,210.42,210.38,9.36749535]
[1756887208518,7.48,210.41,210.4,1.73749535]
[1756887209217,121.54,210.42,210.4,1.73749535]
[1756887209817,5.0,210.42,210.41,7.63]
[1756887210218,5.0,210.42,210.41,8.11]
[1756887210518,116.54,210.48,210.41,8.11]
[1756887210718,124.0,210.5,210.47,1.73749535]
[1756887210913,124.0,210.5,210.45,1.73749535]
[1756887210914,7.48,210.49,210.45,1.73749535]
[1756887211115,7.48,210.49,210.42,7.63]
[1756887211314,7.48,210.49,210.45,1.73749535]
[1756887211613,7.48,210.45,210.36,7.63]
[1756887211818,7.48,210.43,210.38,1.73749535]
[1756887212018,124.0,210.44,210.38,1.73749535]
[1756887212621,125.73749535,210.44,210.37,1.73749535]
[1756887213721,7.48,210.43,210.39,9.36749535]
[1756887214116,116.52,210.44,210.39,1.73749535]
[1756887214328,7.48,210.43,210.4,7.63]
[1756887214923,7.48,210.43,210.37,1.73749535]
[1756887216626,1.73749535,210.42,210.36,7.63]
[1756887216822,7.48,210.41,210.35,1.73749535]
[1756887217030,7.48,210.39,210.35,9.36749535]
[1756887217527,7.48,210.39,210.26,7.63]
[1756887217733,7.48,210.39,210.29,7.63]
[1756887220234,12.96,210.42,210.33,7.63]
[1756887221829,7.48,210.43,210.35,2.7128832]
[1756887222034,38.3,210.42,210.35,2.7128832]
[1756887222532,78.74,210.43,210.35,2.7128832]
[1756887223136,78.74,210.43,210.33,10.3428832]
[1756887224033,78.74,210.43,210.34,7.88]
[1756887229538,84.08138897,210.43,210.32,2.7128832]
[1756887229738,7.71,210.41,210.32,2.7128832]
[1756887231137,7.71,210.41,210.31,7.88]
[1756887233334,13.05138897,210.41,210.31,7.88]
[1756887233842,7.71,210.39,210.26,2.7128832]
[1756887234239,7.71,210.39,210.27,7.88]
[1756887234433,7.71,210.36,210.27,7.88]
[1756887241550,5.34138897,210.39,210.3,7.88]
[1756887241746,7.71,210.4,210.3,7.88]
[1756887241946,7.71,210.4,210.33,7.88]
[1756887258659,7.71,210.4,210.34,7.77]
[1756887264966,5.34138897,210.43,210.34,7.77]
[1756887266565,7.51,210.42,210.34,7.77]
[1756887275974,5.34138897,210.45,210.29,4.2793]
[1756887276176,122.17138897,210.47,210.38,2.7128832]
[1756887276372,122.17138897,210.47,210.39,7.77]
[1756887279491,123.90676837,210.47,210.4,1.7353794]
[1756887281190,122.17138897,210.47,210.4,1.7353794]
[1756887282495,123.90676837,210.47,210.4,1.7353794]
[1756887286396,123.90676837,210.47,210.39,7.77]
[1756887286599,7.89,210.46,210.39,9.5053794]
[1756887289402,7.89,210.46,210.39,7.77]
[1756887289601,7.89,210.46,210.39,9.5053794]
[1756887291101,114.66138897,210.47,210.41,1.7353794]
[1756887293095,114.66138897,210.47,210.42,7.24]
[1756887293300,7.89,210.46,210.42,7.24]
[1756887293501,7.89,210.46,210.41,1.7353794]
[1756887293700,114.66138897,210.47,210.41,1.7353794]
[1756887294006,7.89,210.46,210.41,1.7353794]
[1756887294198,7.89,210.46,210.39,7.24]
[1756887294398,7.89,210.46,210.4,1.7353794]
[1756887294900,1.7353794,210.42,210.34,7.24]
[1756887295205,7.89,210.41,210.35,1.7353794]
[1756887296505,7.89,210.41,210.34,7.24]
[1756887296702,7.89,210.43,210.35,1.7353794]
[1756887296907,5.34138897,210.44,210.35,1.7353794]
[1756887296908,7.89,210.41,210.35,1.7353794]
[1756887299411,7.89,210.41,210.34,7.24]
[1756887299710,7.89,210.41,210.35,1.7353794]
[1756887300212,7.89,210.41,210.34,7.24]
[1756887300406,1.7353794,210.38,210.33,4.71592]
[1756887300707,7.89,210.37,210.33,4.71592]
[1756887300908,1.7353794,210.38,210.33,4.71592]
[1756887301605,69.3,210.4,210.34,1.7353794]
[1756887301606,5.34138897,210.4,210.34,1.7353794]
[1756887302405,7.89,210.39,210.34,1.7353794]
[1756887303011,13.23138897,210.42,210.38,8.9753794]
[1756887303216,5.34138897,210.44,210.4,1.7353794]
[1756887303511,5.34138897,210.46,210.41,7.24]
[1756887303702,7.89,210.45,210.41,7.24]
[1756887305813,7.89,210.45,210.38,1.7353794]
[1756887308612,13.23138897,210.46,210.4,1.7353794]
[1756887310708,1.7353794,210.45,210.38,1.7353794]
[1756887310914,1.7353794,210.45,210.33,4.71592]
[1756887310915,7.89,210.42,210.36,1.7353794]
[1756887311910,7.89,210.42,210.38,9.2253794]
[1756887313718,9.0153794,210.45,210.39,7.49]
[1756887314019,7.28,210.45,210.41,7.49]
[1756887314513,5.34138897,210.46,210.4,1.7353794]
[1756887314714,5.34138897,210.49,210.44,9.2253794]
[1756887314919,7.28,210.48,210.44,9.2253794]
[1756887315220,1.7353794,210.47,210.34,7.49]
[1756887315418,7.28,210.46,210.39,1.7353794]
[1756887316210,5.34138897,210.48,210.41,1.7353794]
[1756887316413,7.28,210.47,210.41,1.7353794]
[1756887316611,7.28,210.47,210.33,4.71592]
[1756887316612,7.28,210.47,210.43,1.7353794]
[1756887316815,7.28,210.47,210.43,9.2253794]
[1756887317117,7.28,210.47,210.44,7.49]
[1756887318517,5.34138897,210.48,210.44,7.49]
[1756887318717,12.62138897,210.49,210.45,9.2253794]
[1756887319022,7.28,210.49,210.45,9.2253794]
[1756887320216,12.62138897,210.5,210.46,7.49]
[1756887320620,7.28,210.49,210.45,1.7353794]
[1756887320817,7.28,210.49,210.44,1.7353794]
[1756887321120,7.28,210.49,210.44,7.49]
[1756887321318,7.28,210.49,210.44,9.2253794]
[1756887321518,7.28,210.49,210.45,7.49]
[1756887321911,5.34138897,210.51,210.44,9.2253794]
[1756887323724,12.62138897,210.52,210.47,7.49]
[1756887324023,12.62138897,210.52,210.46,1.7353794]
[1756887324024,12.62138897,210.52,210.46,9.2253794]
[1756887324322,7.28,210.52,210.46,9.2253794]
[1756887326227,7.28,210.52,210.48,9.2253794]
[1756887327015,7.28,210.52,210.48,1.7353794]
[1756887327223,7.28,210.52,210.48,9.2253794]
[1756887327420,7.28,210.52,210.48,1.7353794]
[1756887327822,293.0,210.53,210.48,1.7353794]
[1756887328021,7.28,210.52,210.48,1.7353794]
[1756887328528,7.28,210.52,210.48,9.2253794]
[1756887329420,7.28,210.52,210.48,7.49]
[1756887330227,121.74138897,210.54,210.48,7.49]
[1756887331027,7.28,210.53,210.48,7.49]
[1756887331531,121.74138897,210.54,210.48,7.49]
[1756887331829,7.28,210.53,210.47,9.2253794]
[1756887333429,7.28,210.53,210.49,7.49]
[1756887333832,116.4,210.54,210.49,7.49]
[1756887334027,7.28,210.53,210.49,7.49]
[1756887334526,116.4,210.54,210.49,7.49]
[1756887334731,7.28,210.53,210.49,7.49]
[1756887334929,118.1353794,210.54,210.49,7.49]
[1756887335229,7.28,210.53,210.49,7.49]
[1756887335834,116.4,210.54,210.49,7.49]
[1756887336034,7.28,210.53,210.49,7.49]
[1756887337731,116.36,210.54,210.49,7.49]
[1756887337931,116.36,210.54,210.5,1.7353794]
[1756887338132,116.36,210.54,210.51,7.49]
[1756887338324,12.62138897,210.56,210.5,7.49]
[1756887338529,110.86,210.55,210.5,7.49]
[1756887338724,118.14,210.55,210.49,1.7353794]
[1756887338935,119.8753794,210.55,210.48,9.2253794]
[1756887339428,118.14,210.55,210.48,7.49]
[1756887344934,7.28,210.55,210.48,7.49]
[1756887345232,46.9,210.55,210.49,7.6]
[1756887345440,39.62,210.55,210.49,7.6]
[1756887346436,7.29,210.57,210.49,7.6]
[1756887346641,49.02,210.59,210.52,7.6]
[1756887355347,49.02,210.59,210.53,2.70956856]
[1756887357445,7.29,210.58,210.53,2.70956856]
[1756887357838,49.02,210.59,210.53,2.70956856]
[1756887358244,7.29,210.58,210.53,2.70956856]
[1756887358545,7.29,210.58,210.51,7.6]
[1756887358744,7.29,210.58,210.5,2.70956856]
[1756887358940,12.63138897,210.58,210.46,10.30956856]
[1756887359146,57.07095753,210.59,210.46,10.30956856]
[1756887359348,7.29,210.57,210.46,10.30956856]
[1756887359551,5.34138897,210.58,210.46,10.30956856]
[1756887359743,7.29,210.57,210.46,10.30956856]
[1756887361152,80.07,210.57,210.47,7.6]
[1756887361452,80.07,210.57,210.49,2.70956856]
[1756887361653,80.07,210.57,210.49,10.30956856]
[1756887362151,10.34138897,210.59,210.4,25.8]
[1756887362152,10.34138897,210.59,210.53,7.6]
[1756887362352,5.0,210.59,210.56,7.6]
[1756887363244,5.0,210.59,210.55,2.70956856]
[1756887364253,5.0,210.59,210.56,7.6]
[1756887364460,5.0,210.59,210.58,10.30956856]
[1756887365353,5.0,210.59,210.55,10.30956856]
[1756887365563,5.0,210.59,210.56,7.6]
[1756887365761,12.29,210.59,210.56,7.6]
[1756887366255,5.0,210.59,210.56,7.6]
[1756887367363,5.0,210.59,210.55,2.70956856]
[1756887367863,12.29,210.59,210.56,7.6]
[1756887369064,5.0,210.59,210.55,2.70956856]
[1756887369858,7.29,210.58,210.55,2.70956856]
[1756887371166,7.29,210.58,210.55,10.30956856]
[1756887371461,5.0,210.59,210.55,2.70956856]
[1756887371667,5.0,210.59,210.58,9.85956856]
[1756887373767,7.28,210.69,210.59,7.15]
[1756887373967,7.28,210.69,210.62,2.70956856]
[1756887374172,7.28,210.69,210.59,7.15]
[1756887374370,7.28,210.69,210.62,2.70956856]
[1756887375773,5.34138897,210.71,210.59,9.85956856]
[1756887376169,7.28,210.7,210.59,9.85956856]
[1756887376474,7.28,210.7,210.59,7.15]
[1756887376773,7.28,210.69,210.59,9.85956856]
[1756887376968,5.34138897,210.71,210.59,9.85956856]
[1756887377165,7.28,210.7,210.59,9.85956856]
[1756887377368,5.34138897,210.71,210.59,9.85956856]
[1756887377765,7.28,210.7,210.59,9.85956856]
[1756887378068,7.28,210.73,210.65,2.70956856]
[1756887378966,298.5463874,210.76,210.56,66.4851]
[1756887378967,5.0,210.76,210.71,2.70956856]
[1756887379172,5.0,210.76,210.72,7.15]
[1756887379374,5.0,210.76,210.72,9.85956856]
[1756887379575,5.0,210.76,210.72,2.70956856]
[1756887379774,5.0,210.76,210.73,7.15]
[1756887379975,5.0,210.76,210.75,9.85956856]
[1756887380176,5.0,210.76,210.75,7.15]
[1756887380474,5.0,210.76,210.75,9.85956856]
[1756887383074,5.0,210.76,210.75,2.70956856]
[1756887383275,5.0,210.76,210.73,2.70956856]
[1756887383579,7.28,210.84,210.74,7.15]
[1756887383873,7.28,210.84,210.78,2.70956856]
[1756887384279,7.28,210.84,210.74,7.15]
[1756887384472,7.28,210.84,210.77,2.70956856]
[1756887385180,19.88,210.84,210.77,2.70956856]
[1756887385380,19.88,210.84,210.74,7.15]
[1756887385381,34.1,210.84,210.76,2.70956856]
[1756887385574,34.1,210.84,210.68,7.15]
[1756887385882,7.28,210.82,210.72,2.70956856]
[1756887386081,40.32,210.81,210.72,2.70956856]
[1756887386382,7.28,210.82,210.72,2.70956856]
[1756887386383,45.96,210.8,210.72,2.70956856]
[1756887387082,7.28,210.79,210.72,2.70956856]
[1756887387982,7.28,210.79,210.75,2.70956856]
[1756887388478,21.04,210.81,210.75,2.70956856]
[1756887388773,7.28,210.8,210.67,14.53]
[1756887388982,7.28,210.8,210.7,2.70956856]
[1756887389170,7.28,210.78,210.7,2.70956856]
[1756887389568,56.26,210.78,210.7,2.70956856]
[1756887390172,7.28,210.78,210.7,2.70956856]
[1756887390374,76.8,210.78,210.7,2.70956856]
[1756887390576,7.28,210.78,210.7,9.85956856]
[1756887390775,7.28,210.78,210.73,2.70956856]
[1756887390981,7.28,210.78,210.73,9.85956856]
[1756887392178,7.28,210.79,210.7,2.70956856]
[1756887392577,7.28,210.79,210.73,2.70956856]
[1756887396380,7.28,210.79,210.71,7.15]
[1756887396580,7.28,210.79,210.67,7.15]
[1756887396786,117.12,210.78,210.67,7.15]
[1756887396984,7.28,210.77,210.7,2.70956856]
[1756887398278,22.84,210.76,210.7,2.70956856]
[1756887399584,7.28,210.75,210.73,1.73001022]
[1756887399787,22.84,210.76,210.73,1.73001022]
[1756887399788,7.28,210.74,210.73,1.73001022]
[1756887402593,7.54,210.76,210.73,1.73001022]
[1756887403085,107.4,210.77,210.73,1.73001022]
[1756887403287,7.54,210.79,210.69,7.83]
[1756887403488,117.0,210.78,210.73,1.73001022]
[1756887403688,7.54,210.77,210.73,1.73001022]